[Event "Titled Tuesday Blitz April 05 Late 2022"]
[White "Papasimakopoulos, Alexandros"]
[Black "Li, Ben"]
[WhiteFideId "4244125"]
[BlackFideId "2089980"]
[WhiteElo "2340"]
[BlackElo "2267"]
[Result "0-1"]
[Round "11"]
[TimeControl "180+1"]
[Date "2022.04.05"]
[WhiteClock "0:00:15"]
[BlackClock "0:00:18"]

1. d4 {[%clk 0:03:00]}  d5 {[%clk 0:02:59]} 2. c4 {[%clk 0:03:00]}  c6 {[%clk 0:02:58]} 3. cxd5 {[%clk 0:03:00]}  cxd5 {[%clk 0:02:59]} 4. Bf4 {[%clk 0:03:00]}  Nf6 {[%clk 0:02:57]} 5. Nc3 {[%clk 0:03:00]}  Nc6 {[%clk 0:02:57]} 6. e3 {[%clk 0:03:01]}  a6 {[%clk 0:02:57]} 7. Bd3 {[%clk 0:03:01]}  Bg4 {[%clk 0:02:56]} 8. Nge2 {[%clk 0:03:01]}  e6 {[%clk 0:02:57]} 9. O-O {[%clk 0:03:02]}  Bd6 {[%clk 0:02:57]} 10. f3 {[%clk 0:03:02]}  Bh5 {[%clk 0:02:57]} 11. Rc1 {[%clk 0:03:03]}  Bg6 {[%clk 0:02:58]} 12. Na4 {[%clk 0:03:03]}  O-O {[%clk 0:02:54]} 13. Nc5 {[%clk 0:03:03]}  Bxc5 {[%clk 0:02:53]} 14. Rxc5 {[%clk 0:03:04]}  Qe7 {[%clk 0:02:50]} 15. Bg3 {[%clk 0:03:00]}  Bxd3 {[%clk 0:02:38]} 16. Qxd3 {[%clk 0:02:58]}  Rfc8 {[%clk 0:02:39]} 17. Rfc1 {[%clk 0:02:57]}  Qd8 {[%clk 0:02:27]} 18. a3 {[%clk 0:02:45]}  Ne7 {[%clk 0:02:23]} 19. Bc7 {[%clk 0:02:44]}  Qd7 {[%clk 0:02:18]} 20. Qb3 {[%clk 0:02:44]}  b5 {[%clk 0:01:35]} 21. Nf4 {[%clk 0:02:33]}  Ne8 {[%clk 0:01:31]} 22. Qc2 {[%clk 0:02:14]}  Nf5 {[%clk 0:01:13]} 23. Kf2 {[%clk 0:02:11]}  Nfd6 {[%clk 0:01:03]} 24. Bxd6 {[%clk 0:02:09]}  Nxd6 {[%clk 0:01:04]} 25. b3 {[%clk 0:01:53]}  g6 {[%clk 0:00:58]} 26. Nd3 {[%clk 0:01:52]}  Qd8 {[%clk 0:00:57]} 27. Ne5 {[%clk 0:01:44]}  Qh4+ {[%clk 0:00:50]} 28. Kg1 {[%clk 0:01:44]}  Qg5 {[%clk 0:00:50]} 29. Qd2 {[%clk 0:01:32]}  h5 {[%clk 0:00:50]} 30. Nd7 {[%clk 0:01:13]}  Qd8 {[%clk 0:00:48]} 31. Ne5 {[%clk 0:01:11]}  Qg5 {[%clk 0:00:47]} 32. Qf2 {[%clk 0:01:09]}  Rxc5 {[%clk 0:00:44]} 33. Rxc5 {[%clk 0:01:05]}  Rc8 {[%clk 0:00:41]} 34. h4 {[%clk 0:01:00]}  Qf5 {[%clk 0:00:34]} 35. Nc6 {[%clk 0:00:57]}  Kg7 {[%clk 0:00:29]} 36. Qc2 {[%clk 0:00:51]}  Qf6 {[%clk 0:00:26]} 37. g3 {[%clk 0:00:46]}  Nf5 {[%clk 0:00:25]} 38. Kf2 {[%clk 0:00:46]}  g5 {[%clk 0:00:24]} 39. Ne5 {[%clk 0:00:17]}  Rxc5 {[%clk 0:00:23]} 40. Qxc5 {[%clk 0:00:17]}  gxh4 {[%clk 0:00:22]} 41. gxh4 {[%clk 0:00:17]}  Qxh4+ {[%clk 0:00:22]} 42. Ke2 {[%clk 0:00:17]}  Qh2+ {[%clk 0:00:20]} 43. Kd3 {[%clk 0:00:17]}  Qf2 {[%clk 0:00:21]} 44. Qc1 {[%clk 0:00:14]}  h4 {[%clk 0:00:19]} 45. Ng4 {[%clk 0:00:14]}  Qxf3 {[%clk 0:00:18]} 46. Qg1 {[%clk 0:00:11]}  Qe4+ {[%clk 0:00:17]} 47. Kd2 {[%clk 0:00:11]}  Kf8 {[%clk 0:00:12]} 48. Nf6 {[%clk 0:00:11]}  Qf3 {[%clk 0:00:09]} 49. Ng4 {[%clk 0:00:07]}  h3 {[%clk 0:00:07]} 50. Ne5 {[%clk 0:00:07]}  Qg3 {[%clk 0:00:06]} 51. Qxg3 {[%clk 0:00:04]}  Nxg3 {[%clk 0:00:07]} 52. Ng4 {[%clk 0:00:04]}  Nf1+ {[%clk 0:00:05]} 53. Ke2 {[%clk 0:00:03]}  h2 {[%clk 0:00:06]} 54. Nf2 {[%clk 0:00:02]}  Ng3+ {[%clk 0:00:06]} 55. Kf3 {[%clk 0:00:02]}  h1=Q+ {[%clk 0:00:06]} 56. Nxh1 {[%clk 0:00:02]}  Nxh1 {[%clk 0:00:07]} 57. Kg2 {[%clk 0:00:03]}  Ke7 {[%clk 0:00:07]} 58. Kxh1 {[%clk 0:00:04]}  Kf6 {[%clk 0:00:07]} 59. Kg2 {[%clk 0:00:04]}  Kf5 {[%clk 0:00:08]} 60. Kf3 {[%clk 0:00:04]}  a5 {[%clk 0:00:08]} 61. a4 {[%clk 0:00:04]}  bxa4 {[%clk 0:00:08]} 62. bxa4 {[%clk 0:00:04]}  f6 {[%clk 0:00:08]} 63. Kf2 {[%clk 0:00:04]}  Ke4 {[%clk 0:00:08]} 64. Ke2 {[%clk 0:00:05]}  e5 {[%clk 0:00:09]} 65. dxe5 {[%clk 0:00:06]}  fxe5 {[%clk 0:00:10]} 66. Kd2 {[%clk 0:00:06]}  d4 {[%clk 0:00:10]} 67. exd4 {[%clk 0:00:06]}  Kxd4 {[%clk 0:00:10]} 68. Ke2 {[%clk 0:00:05]}  Kc3 {[%clk 0:00:09]} 69. Ke3 {[%clk 0:00:05]}  Kb4 {[%clk 0:00:10]} 70. Ke4 {[%clk 0:00:06]}  Kxa4 {[%clk 0:00:11]} 71. Kxe5 {[%clk 0:00:07]}  Kb3 {[%clk 0:00:11]} 72. Kd4 {[%clk 0:00:07]}  a4 {[%clk 0:00:12]} 73. Kd3 {[%clk 0:00:08]}  a3 {[%clk 0:00:12]} 74. Kd2 {[%clk 0:00:09]}  Kb2 {[%clk 0:00:13]} 75. Kd3 {[%clk 0:00:10]}  a2 {[%clk 0:00:13]} 76. Kc4 {[%clk 0:00:10]}  a1=Q {[%clk 0:00:14]} 77. Kb5 {[%clk 0:00:11]}  Qa3 {[%clk 0:00:14]} 78. Kc6 {[%clk 0:00:11]}  Qd3 {[%clk 0:00:14]} 79. Kb6 {[%clk 0:00:12]}  Qc4 {[%clk 0:00:14]} 80. Ka5 {[%clk 0:00:12]}  Qb3 {[%clk 0:00:15]} 81. Ka6 {[%clk 0:00:12]}  Kc3 {[%clk 0:00:16]} 82. Ka7 {[%clk 0:00:13]}  Kc4 {[%clk 0:00:16]} 83. Ka8 {[%clk 0:00:14]}  Kc5 {[%clk 0:00:17]} 84. Ka7 {[%clk 0:00:15]}  Kc6 {[%clk 0:00:18]} 85. Ka8 {[%clk 0:00:15]}  Qb7# {[%clk 0:00:18]} 0-1


[Site "https://www.chess.com"]

[Event "Titled Tuesday Blitz April 05 Late 2022"]
[White "Quirke, Jeffrey"]
[Black "Clawitter, Craig"]
[WhiteFideId "2013029"]
[BlackFideId "2023105"]
[WhiteElo "2229"]
[BlackElo "2201"]
[Result "1-0"]
[Round "11"]
[TimeControl "180+1"]
[Date "2022.04.06"]
[WhiteClock "0:00:10"]
[BlackClock "0:00:02"]

1. c4 {[%clk 0:03:00]}  e6 {[%clk 0:02:58]} 2. g3 {[%clk 0:02:59]}  d5 {[%clk 0:02:57]} 3. Bg2 {[%clk 0:02:59]}  Nf6 {[%clk 0:02:55]} 4. Nf3 {[%clk 0:02:57]}  Be7 {[%clk 0:02:55]} 5. O-O {[%clk 0:02:56]}  O-O {[%clk 0:02:55]} 6. b3 {[%clk 0:02:54]}  a5 {[%clk 0:02:52]} 7. a3 {[%clk 0:02:36]}  a4 {[%clk 0:02:48]} 8. cxd5 {[%clk 0:02:32]}  exd5 {[%clk 0:02:44]} 9. b4 {[%clk 0:02:29]}  Re8 {[%clk 0:02:31]} 10. Bb2 {[%clk 0:02:23]}  Nbd7 {[%clk 0:02:21]} 11. d3 {[%clk 0:02:23]}  c6 {[%clk 0:02:15]} 12. Nc3 {[%clk 0:02:17]}  Nb6 {[%clk 0:02:04]} 13. Nd4 {[%clk 0:01:58]}  h5 {[%clk 0:01:48]} 14. h3 {[%clk 0:01:54]}  Bd6 {[%clk 0:01:38]} 15. Qc2 {[%clk 0:01:48]}  h4 {[%clk 0:01:04]} 16. g4 {[%clk 0:01:48]}  Qe7 {[%clk 0:01:04]} 17. e4 {[%clk 0:01:23]}  dxe4 {[%clk 0:00:23]} 18. dxe4 {[%clk 0:01:22]}  Nc4 {[%clk 0:00:23]} 19. Bc1 {[%clk 0:01:04]}  Be5 {[%clk 0:00:22]} 20. Nde2 {[%clk 0:00:56]}  Bc7 {[%clk 0:00:13]} 21. f4 {[%clk 0:00:52]}  Bb6+ {[%clk 0:00:10]} 22. Kh1 {[%clk 0:00:50]}  Ne3 {[%clk 0:00:10]} 23. Bxe3 {[%clk 0:00:49]}  Bxe3 {[%clk 0:00:11]} 24. e5 {[%clk 0:00:47]}  Nd5 {[%clk 0:00:11]} 25. Nxd5 {[%clk 0:00:39]}  cxd5 {[%clk 0:00:11]} 26. Bxd5 {[%clk 0:00:39]}  Be6 {[%clk 0:00:10]} 27. Bxe6 {[%clk 0:00:38]}  Qxe6 {[%clk 0:00:10]} 28. Qe4 {[%clk 0:00:39]}  Bb6 {[%clk 0:00:08]} 29. Rad1 {[%clk 0:00:28]}  Rac8 {[%clk 0:00:08]} 30. Rd6 {[%clk 0:00:25]}  Qa2 {[%clk 0:00:05]} 31. Rxb6 {[%clk 0:00:23]}  Rc2 {[%clk 0:00:04]} 32. Rf2 {[%clk 0:00:20]}  Qxa3 {[%clk 0:00:04]} 33. Kg2 {[%clk 0:00:17]}  Rb2 {[%clk 0:00:02]} 34. f5 {[%clk 0:00:11]}  Rd8 {[%clk 0:00:02]} 35. e6 {[%clk 0:00:10]} 1-0


[Site "https://www.chess.com"]

[Event "Titled Tuesday Blitz April 05 Late 2022"]
[White "Romanchuk, Viktor"]
[Black "Zherebtsova, Alexandra"]
[WhiteFideId "14109271"]
[BlackFideId "24129518"]
[WhiteElo "2560"]
[BlackElo "2415"]
[Result "1-0"]
[Round "11"]
[TimeControl "180+1"]
[Date "2022.04.06"]
[WhiteClock "0:00:36"]
[BlackClock "0:00:45"]

1. d4 {[%clk 0:02:18]}  d5 {[%clk 0:02:57]} 2. c4 {[%clk 0:02:18]}  e6 {[%clk 0:02:56]} 3. Nc3 {[%clk 0:02:18]}  Nf6 {[%clk 0:02:56]} 4. Nf3 {[%clk 0:02:18]}  Be7 {[%clk 0:02:54]} 5. Bf4 {[%clk 0:02:18]}  b6 {[%clk 0:02:53]} 6. e3 {[%clk 0:02:18]}  Bb7 {[%clk 0:02:52]} 7. cxd5 {[%clk 0:02:09]}  Nxd5 {[%clk 0:02:51]} 8. Bb5+ {[%clk 0:02:08]}  c6 {[%clk 0:02:49]} 9. Nxd5 {[%clk 0:02:08]}  Qxd5 {[%clk 0:02:43]} 10. Bd3 {[%clk 0:01:59]}  Bb4+ {[%clk 0:02:43]} 11. Ke2 {[%clk 0:01:59]}  O-O {[%clk 0:02:21]} 12. Qc2 {[%clk 0:01:58]}  h6 {[%clk 0:02:18]} 13. a3 {[%clk 0:01:47]}  Be7 {[%clk 0:02:17]} 14. Rhd1 {[%clk 0:01:45]}  Nd7 {[%clk 0:02:09]} 15. Rac1 {[%clk 0:01:41]}  Qh5 {[%clk 0:02:04]} 16. Be4 {[%clk 0:01:30]}  Nf6 {[%clk 0:02:00]} 17. Bxc6 {[%clk 0:01:29]}  Ba6+ {[%clk 0:01:48]} 18. Ke1 {[%clk 0:01:25]}  Nd5 {[%clk 0:01:31]} 19. Bg3 {[%clk 0:01:19]}  Rad8 {[%clk 0:01:08]} 20. Qa4 {[%clk 0:01:17]}  Bc8 {[%clk 0:01:05]} 21. Qxa7 {[%clk 0:01:16]}  f5 {[%clk 0:00:58]} 22. Bxd5 {[%clk 0:01:13]}  Rxd5 {[%clk 0:00:57]} 23. Qxe7 {[%clk 0:01:12]}  f4 {[%clk 0:00:57]} 24. Rxc8 {[%clk 0:00:50]}  Rxc8 {[%clk 0:00:52]} 25. Qxe6+ {[%clk 0:00:50]}  Kh7 {[%clk 0:00:51]} 26. Qxc8 {[%clk 0:00:50]}  fxg3 {[%clk 0:00:51]} 27. hxg3 {[%clk 0:00:47]}  Qf7 {[%clk 0:00:48]} 28. Rc1 {[%clk 0:00:39]}  Rh5 {[%clk 0:00:48]} 29. Ke2 {[%clk 0:00:37]}  Qb3 {[%clk 0:00:46]} 30. Qc2+ {[%clk 0:00:35]}  Qxc2+ {[%clk 0:00:45]} 31. Rxc2 {[%clk 0:00:36]} 1-0


[Site "https://www.chess.com"]

[Event "Titled Tuesday Blitz April 05 Late 2022"]
[White "Sanal, Vahap"]
[Black "Tregubov, Pavel V."]
[WhiteFideId "6300545"]
[BlackFideId "4115341"]
[WhiteElo "2603"]
[BlackElo "2341"]
[Result "1/2-1/2"]
[Round "11"]
[TimeControl "180+1"]
[Date "2022.04.05"]
[WhiteClock "0:00:07"]
[BlackClock "0:00:06"]

1. Nf3 {[%clk 0:03:00]}  Nf6 {[%clk 0:02:58]} 2. b3 {[%clk 0:03:00]}  c5 {[%clk 0:02:57]} 3. Bb2 {[%clk 0:03:01]}  Nc6 {[%clk 0:02:58]} 4. e3 {[%clk 0:02:59]}  d6 {[%clk 0:02:57]} 5. d4 {[%clk 0:02:59]}  cxd4 {[%clk 0:02:46]} 6. exd4 {[%clk 0:02:59]}  e6 {[%clk 0:02:40]} 7. Bd3 {[%clk 0:02:56]}  g6 {[%clk 0:02:37]} 8. d5 {[%clk 0:02:54]}  exd5 {[%clk 0:02:32]} 9. O-O {[%clk 0:02:55]}  Be7 {[%clk 0:02:20]} 10. Re1 {[%clk 0:02:46]}  O-O {[%clk 0:02:20]} 11. Nc3 {[%clk 0:02:38]}  Bg4 {[%clk 0:02:04]} 12. h3 {[%clk 0:02:37]}  Bxf3 {[%clk 0:02:04]} 13. Qxf3 {[%clk 0:02:38]}  Ne5 {[%clk 0:02:03]} 14. Qd1 {[%clk 0:02:37]}  Rc8 {[%clk 0:01:54]} 15. Bf1 {[%clk 0:02:32]}  Qa5 {[%clk 0:01:51]} 16. Nb5 {[%clk 0:02:30]}  a6 {[%clk 0:01:39]} 17. Nd4 {[%clk 0:02:28]}  Rfe8 {[%clk 0:01:32]} 18. f4 {[%clk 0:02:13]}  Ned7 {[%clk 0:01:28]} 19. Qf3 {[%clk 0:02:05]}  Ne4 {[%clk 0:01:27]} 20. Nf5 {[%clk 0:01:27]}  Bf6 {[%clk 0:01:06]} 21. Bxf6 {[%clk 0:01:05]}  Ndxf6 {[%clk 0:01:06]} 22. Ne3 {[%clk 0:00:58]}  Rc3 {[%clk 0:00:57]} 23. Bd3 {[%clk 0:00:58]}  Qc5 {[%clk 0:00:30]} 24. Kh2 {[%clk 0:00:56]}  d4 {[%clk 0:00:27]} 25. Nd1 {[%clk 0:00:49]}  Rxc2 {[%clk 0:00:23]} 26. Bxe4 {[%clk 0:00:45]}  Rd2 {[%clk 0:00:16]} 27. Nf2 {[%clk 0:00:27]}  Rxf2 {[%clk 0:00:16]} 28. Qxf2 {[%clk 0:00:27]}  Nxe4 {[%clk 0:00:16]} 29. Qf3 {[%clk 0:00:27]}  d5 {[%clk 0:00:16]} 30. Rac1 {[%clk 0:00:27]}  Qd6 {[%clk 0:00:16]} 31. Rcd1 {[%clk 0:00:27]}  Qf6 {[%clk 0:00:15]} 32. g3 {[%clk 0:00:27]}  Rc8 {[%clk 0:00:14]} 33. Qd3 {[%clk 0:00:22]}  Rc3 {[%clk 0:00:07]} 34. Qxd4 {[%clk 0:00:22]}  Rc2+ {[%clk 0:00:08]} 35. Kg1 {[%clk 0:00:22]}  Qf5 {[%clk 0:00:06]} 36. Qd3 {[%clk 0:00:16]}  Rc3 {[%clk 0:00:05]} 37. g4 {[%clk 0:00:11]}  Qxf4 {[%clk 0:00:05]} 38. Rxe4 {[%clk 0:00:10]}  Rxd3 {[%clk 0:00:03]} 39. Re8+ {[%clk 0:00:09]}  Kg7 {[%clk 0:00:03]} 40. Rxd3 {[%clk 0:00:10]}  Qc1+ {[%clk 0:00:02]} 41. Kf2 {[%clk 0:00:09]}  Qc2+ {[%clk 0:00:03]} 42. Ke3 {[%clk 0:00:09]}  Qxa2 {[%clk 0:00:03]} 43. Rd8 {[%clk 0:00:07]}  Qg2 {[%clk 0:00:02]} 44. R8xd5 {[%clk 0:00:06]}  Qxh3+ {[%clk 0:00:03]} 45. Kf4 {[%clk 0:00:07]}  Qh2+ {[%clk 0:00:03]} 46. Kf3 {[%clk 0:00:07]}  Qh3+ {[%clk 0:00:02]} 47. Kf4 {[%clk 0:00:08]}  Qh2+ {[%clk 0:00:03]} 48. Ke4 {[%clk 0:00:08]}  Qg2+ {[%clk 0:00:02]} 49. Kf4 {[%clk 0:00:08]}  Qf2+ {[%clk 0:00:03]} 50. Rf3 {[%clk 0:00:06]}  Qe2 {[%clk 0:00:02]} 51. Rdd3 {[%clk 0:00:04]}  Qe6 {[%clk 0:00:02]} 52. Kg3 {[%clk 0:00:05]}  Qe1+ {[%clk 0:00:02]} 53. Kg2 {[%clk 0:00:05]}  Qe2+ {[%clk 0:00:02]} 54. Kg3 {[%clk 0:00:05]}  Qe5+ {[%clk 0:00:02]} 55. Kg2 {[%clk 0:00:05]}  h5 {[%clk 0:00:03]} 56. gxh5 {[%clk 0:00:06]}  Qxh5 {[%clk 0:00:03]} 57. Rd4 {[%clk 0:00:05]}  Qg5+ {[%clk 0:00:03]} 58. Kf2 {[%clk 0:00:05]}  Qe5 {[%clk 0:00:04]} 59. Rd7 {[%clk 0:00:04]}  Qe6 {[%clk 0:00:04]} 60. Rxb7 {[%clk 0:00:04]}  g5 {[%clk 0:00:03]} 61. Rb8 {[%clk 0:00:02]}  g4 {[%clk 0:00:03]} 62. Re3 {[%clk 0:00:01]}  Qf5+ {[%clk 0:00:03]} 63. Ke2 {[%clk 0:00:01]}  Qf4 {[%clk 0:00:03]} 64. Rbe8 {[%clk 0:00:01]}  g3 {[%clk 0:00:03]} 65. R8e4 {[%clk 0:00:01]}  Qf2+ {[%clk 0:00:03]} 66. Kd3 {[%clk 0:00:02]}  g2 {[%clk 0:00:03]} 67. Rg4+ {[%clk 0:00:03]}  Kf6 {[%clk 0:00:04]} 68. Reg3 {[%clk 0:00:04]}  Qf1+ {[%clk 0:00:03]} 69. Kd2 {[%clk 0:00:04]}  Qf2+ {[%clk 0:00:04]} 70. Kc3 {[%clk 0:00:05]}  Qe1+ {[%clk 0:00:04]} 71. Kb2 {[%clk 0:00:05]}  Qd2+ {[%clk 0:00:04]} 72. Ka3 {[%clk 0:00:06]}  Qa5+ {[%clk 0:00:04]} 73. Kb2 {[%clk 0:00:06]}  Qd2+ {[%clk 0:00:05]} 74. Kb1 {[%clk 0:00:05]}  Qd1+ {[%clk 0:00:05]} 75. Ka2 {[%clk 0:00:06]}  Qd2+ {[%clk 0:00:05]} 76. Ka3 {[%clk 0:00:07]}  Qa5+ {[%clk 0:00:06]} 77. Kb2 {[%clk 0:00:07]}  Qd2+ {[%clk 0:00:06]} 1/2-1/2


[Site "https://www.chess.com"]

[Event "Titled Tuesday Blitz April 05 Late 2022"]
[White "Sarkar, Justin"]
[Black "Prohorov, Olexandr"]
[WhiteFideId "2010011"]
[BlackFideId "14105578"]
[WhiteElo "2321"]
[BlackElo "2429"]
[Result "0-1"]
[Round "11"]
[TimeControl "180+1"]
[Date "2022.04.06"]
[WhiteClock "0:00:02"]
[BlackClock "0:00:05"]

1. e4 {[%clk 0:03:00]}  c5 {[%clk 0:02:58]} 2. Nf3 {[%clk 0:03:00]}  Nc6 {[%clk 0:02:57]} 3. Nc3 {[%clk 0:02:57]}  e5 {[%clk 0:02:53]} 4. Bc4 {[%clk 0:02:56]}  Be7 {[%clk 0:02:52]} 5. d3 {[%clk 0:02:53]}  Nf6 {[%clk 0:02:51]} 6. Nd2 {[%clk 0:02:49]}  O-O {[%clk 0:02:36]} 7. Nf1 {[%clk 0:02:47]}  d6 {[%clk 0:02:36]} 8. Ne3 {[%clk 0:02:45]}  Be6 {[%clk 0:02:30]} 9. O-O {[%clk 0:02:41]}  Nd7 {[%clk 0:02:27]} 10. Ncd5 {[%clk 0:02:31]}  Bg5 {[%clk 0:02:26]} 11. c3 {[%clk 0:02:26]}  Bxe3 {[%clk 0:02:19]} 12. fxe3 {[%clk 0:02:20]}  Ne7 {[%clk 0:02:15]} 13. a4 {[%clk 0:01:59]}  Bxd5 {[%clk 0:02:10]} 14. exd5 {[%clk 0:01:57]}  f5 {[%clk 0:02:10]} 15. a5 {[%clk 0:01:49]}  Nf6 {[%clk 0:02:03]} 16. Qb3 {[%clk 0:01:44]}  Rb8 {[%clk 0:01:55]} 17. Bd2 {[%clk 0:01:43]}  Kh8 {[%clk 0:01:54]} 18. Be1 {[%clk 0:01:40]}  g5 {[%clk 0:01:45]} 19. Bd2 {[%clk 0:01:25]}  Rg8 {[%clk 0:01:38]} 20. Qc2 {[%clk 0:01:16]}  h6 {[%clk 0:01:30]} 21. b4 {[%clk 0:01:13]}  cxb4 {[%clk 0:01:28]} 22. cxb4 {[%clk 0:01:12]}  f4 {[%clk 0:01:27]} 23. d4 {[%clk 0:01:01]}  Rc8 {[%clk 0:01:08]} 24. dxe5 {[%clk 0:00:56]}  dxe5 {[%clk 0:01:06]} 25. Qb3 {[%clk 0:00:49]}  Qd6 {[%clk 0:01:00]} 26. Rad1 {[%clk 0:00:29]}  Nf5 {[%clk 0:00:56]} 27. Bd3 {[%clk 0:00:13]}  Nxe3 {[%clk 0:00:50]} 28. Bxe3 {[%clk 0:00:13]}  fxe3 {[%clk 0:00:50]} 29. Be2 {[%clk 0:00:05]}  Rcf8 {[%clk 0:00:42]} 30. Qxe3 {[%clk 0:00:05]}  Qxb4 {[%clk 0:00:38]} 31. Qxe5 {[%clk 0:00:04]}  Qe4 {[%clk 0:00:28]} 32. Qxe4 {[%clk 0:00:03]}  Nxe4 {[%clk 0:00:28]} 33. Rxf8 {[%clk 0:00:03]}  Rxf8 {[%clk 0:00:29]} 34. d6 {[%clk 0:00:03]}  Rd8 {[%clk 0:00:20]} 35. d7 {[%clk 0:00:03]}  Nc3 {[%clk 0:00:13]} 36. Rd2 {[%clk 0:00:03]}  Nxe2+ {[%clk 0:00:14]} 37. Rxe2 {[%clk 0:00:03]}  Rxd7 {[%clk 0:00:14]} 38. Re8+ {[%clk 0:00:03]}  Kg7 {[%clk 0:00:14]} 39. Ra8 {[%clk 0:00:03]}  a6 {[%clk 0:00:14]} 40. Kf2 {[%clk 0:00:03]}  Kg6 {[%clk 0:00:14]} 41. Rb8 {[%clk 0:00:03]}  Rc7 {[%clk 0:00:14]} 42. h3 {[%clk 0:00:03]}  Re7 {[%clk 0:00:14]} 43. Kg3 {[%clk 0:00:03]}  Kf5 {[%clk 0:00:12]} 44. Rf8+ {[%clk 0:00:02]}  Ke5 {[%clk 0:00:12]} 45. Rh8 {[%clk 0:00:02]}  Re6 {[%clk 0:00:08]} 46. Rh7 {[%clk 0:00:02]}  b6 {[%clk 0:00:08]} 47. axb6 {[%clk 0:00:03]}  Rxb6 {[%clk 0:00:09]} 48. Ra7 {[%clk 0:00:03]}  Kf5 {[%clk 0:00:08]} 49. Kh2 {[%clk 0:00:03]}  h5 {[%clk 0:00:07]} 50. Rf7+ {[%clk 0:00:02]}  Ke4 {[%clk 0:00:07]} 51. Re7+ {[%clk 0:00:02]}  Kd3 {[%clk 0:00:06]} 52. Re5 {[%clk 0:00:02]}  Rb5 {[%clk 0:00:06]} 53. Re6 {[%clk 0:00:02]}  a5 {[%clk 0:00:06]} 54. Ra6 {[%clk 0:00:02]}  Kc4 {[%clk 0:00:06]} 55. h4 {[%clk 0:00:02]}  g4 {[%clk 0:00:06]} 56. Kg3 {[%clk 0:00:02]}  Kb3 {[%clk 0:00:06]} 57. Kf4 {[%clk 0:00:02]}  a4 {[%clk 0:00:05]} 0-1


[Site "https://www.chess.com"]

[Event "Titled Tuesday Blitz April 05 Late 2022"]
[White "Shimanov, Aleksandr"]
[Black "Naroditsky, Daniel"]
[WhiteFideId "4198603"]
[BlackFideId "2026961"]
[WhiteElo "2636"]
[BlackElo "2608"]
[Result "0-1"]
[Round "11"]
[TimeControl "180+1"]
[Date "2022.04.05"]
[WhiteClock "0:00:06"]
[BlackClock "0:00:08"]

1. b3 {[%clk 0:02:57]}  e5 {[%clk 0:02:59]} 2. Bb2 {[%clk 0:02:56]}  Nc6 {[%clk 0:03:00]} 3. e3 {[%clk 0:02:50]}  Nf6 {[%clk 0:03:00]} 4. Bb5 {[%clk 0:02:46]}  e4 {[%clk 0:03:00]} 5. d4 {[%clk 0:02:38]}  d5 {[%clk 0:02:55]} 6. c4 {[%clk 0:02:36]}  a6 {[%clk 0:02:56]} 7. Bxc6+ {[%clk 0:02:36]}  bxc6 {[%clk 0:02:57]} 8. h3 {[%clk 0:02:28]}  Bd6 {[%clk 0:02:56]} 9. Ba3 {[%clk 0:02:26]}  O-O {[%clk 0:02:51]} 10. Ne2 {[%clk 0:02:25]}  a5 {[%clk 0:02:42]} 11. Bxd6 {[%clk 0:02:18]}  Qxd6 {[%clk 0:02:39]} 12. Nbc3 {[%clk 0:02:01]}  Ba6 {[%clk 0:02:40]} 13. c5 {[%clk 0:01:40]}  Qd7 {[%clk 0:02:40]} 14. Qd2 {[%clk 0:01:40]}  Rab8 {[%clk 0:02:27]} 15. O-O-O {[%clk 0:01:33]}  Rb4 {[%clk 0:02:24]} 16. Na4 {[%clk 0:01:28]}  Rfb8 {[%clk 0:02:22]} 17. Nec3 {[%clk 0:01:28]}  Qc8 {[%clk 0:02:09]} 18. f4 {[%clk 0:01:19]}  Bb5 {[%clk 0:01:59]} 19. g4 {[%clk 0:01:07]}  Bxa4 {[%clk 0:01:57]} 20. Nxa4 {[%clk 0:01:08]}  Qa6 {[%clk 0:01:47]} 21. Qc2 {[%clk 0:00:53]}  g6 {[%clk 0:01:22]} 22. Rh2 {[%clk 0:00:51]}  h5 {[%clk 0:01:04]} 23. Rg2 {[%clk 0:00:48]}  Kf8 {[%clk 0:01:00]} 24. Kd2 {[%clk 0:00:41]}  Ke7 {[%clk 0:00:53]} 25. g5 {[%clk 0:00:26]}  Ne8 {[%clk 0:00:52]} 26. f5 {[%clk 0:00:27]}  gxf5 {[%clk 0:00:51]} 27. g6 {[%clk 0:00:27]}  f4 {[%clk 0:00:43]} 28. g7 {[%clk 0:00:17]}  Nf6 {[%clk 0:00:40]} 29. Rg5 {[%clk 0:00:12]}  Rg8 {[%clk 0:00:29]} 30. Rdg1 {[%clk 0:00:10]}  Qc8 {[%clk 0:00:15]} 31. Re5+ {[%clk 0:00:08]}  Kd8 {[%clk 0:00:16]} 32. Rh1 {[%clk 0:00:03]}  Rxg7 {[%clk 0:00:16]} 33. Kc1 {[%clk 0:00:03]}  f3 {[%clk 0:00:16]} 34. Qh2 {[%clk 0:00:04]}  Qd7 {[%clk 0:00:05]} 35. Qf4 {[%clk 0:00:03]}  Rg6 {[%clk 0:00:05]} 36. Rf5 {[%clk 0:00:04]}  Qe6 {[%clk 0:00:05]} 37. Re5 {[%clk 0:00:04]}  Qd7 {[%clk 0:00:06]} 38. Rf5 {[%clk 0:00:04]}  Qe7 {[%clk 0:00:06]} 39. Re5 {[%clk 0:00:05]}  Qf8 {[%clk 0:00:06]} 40. Rf5 {[%clk 0:00:04]}  Qg7 {[%clk 0:00:07]} 41. Kb2 {[%clk 0:00:04]}  Kc8 {[%clk 0:00:05]} 42. Ka3 {[%clk 0:00:02]}  Rb7 {[%clk 0:00:05]} 43. Qe5 {[%clk 0:00:02]}  Kb8 {[%clk 0:00:04]} 44. Qe7 {[%clk 0:00:03]}  Ka7 {[%clk 0:00:04]} 45. Qd8 {[%clk 0:00:02]}  Qg8 {[%clk 0:00:03]} 46. Qe7 {[%clk 0:00:02]}  Qe8 {[%clk 0:00:03]} 47. Qxe8 {[%clk 0:00:03]}  Nxe8 {[%clk 0:00:04]} 48. Rxf7 {[%clk 0:00:03]}  Nf6 {[%clk 0:00:03]} 49. Nc3 {[%clk 0:00:03]}  h4 {[%clk 0:00:03]} 50. Nd1 {[%clk 0:00:02]}  Nh5 {[%clk 0:00:04]} 51. Nf2 {[%clk 0:00:02]}  Rg2 {[%clk 0:00:05]} 52. Ng4 {[%clk 0:00:02]}  Ng3 {[%clk 0:00:05]} 53. Rb1 {[%clk 0:00:02]}  a4 {[%clk 0:00:05]} 54. Rb2 {[%clk 0:00:01]}  axb3 {[%clk 0:00:03]} 55. axb3 {[%clk 0:00:01]}  Rxb2 {[%clk 0:00:03]} 56. Kxb2 {[%clk 0:00:02]}  Ne2 {[%clk 0:00:03]} 57. Nf2 {[%clk 0:00:02]}  Ng3 {[%clk 0:00:03]} 58. Rf8 {[%clk 0:00:02]}  Nf1 {[%clk 0:00:03]} 59. Ng4 {[%clk 0:00:02]}  Nd2 {[%clk 0:00:04]} 60. Kc3 {[%clk 0:00:03]}  Nxb3 {[%clk 0:00:04]} 61. Rh8 {[%clk 0:00:02]}  Na5 {[%clk 0:00:04]} 62. Rxh4 {[%clk 0:00:02]}  Rb3+ {[%clk 0:00:05]} 63. Kc2 {[%clk 0:00:02]}  Ra3 {[%clk 0:00:05]} 64. Rh7 {[%clk 0:00:02]}  Kb7 {[%clk 0:00:06]} 65. h4 {[%clk 0:00:02]}  Nc4 {[%clk 0:00:06]} 66. h5 {[%clk 0:00:03]}  Nxe3+ {[%clk 0:00:06]} 67. Nxe3 {[%clk 0:00:03]}  Rxe3 {[%clk 0:00:06]} 68. Rf7 {[%clk 0:00:04]}  Re2+ {[%clk 0:00:07]} 69. Kc3 {[%clk 0:00:04]}  Rh2 {[%clk 0:00:07]} 70. Rf5 {[%clk 0:00:04]}  f2 {[%clk 0:00:06]} 71. h6 {[%clk 0:00:03]}  e3 {[%clk 0:00:02]} 72. Kd3 {[%clk 0:00:03]}  Rh1 {[%clk 0:00:02]} 73. h7 {[%clk 0:00:02]}  Rxh7 {[%clk 0:00:02]} 74. Kxe3 {[%clk 0:00:02]}  Rh4 {[%clk 0:00:02]} 75. Rxf2 {[%clk 0:00:02]}  Rh3+ {[%clk 0:00:02]} 76. Kf4 {[%clk 0:00:02]}  Rd3 {[%clk 0:00:02]} 77. Ke5 {[%clk 0:00:02]}  Re3+ {[%clk 0:00:03]} 78. Kf5 {[%clk 0:00:02]}  Re4 {[%clk 0:00:04]} 79. Rf4 {[%clk 0:00:02]}  Re1 {[%clk 0:00:03]} 80. Rf3 {[%clk 0:00:02]}  Re4 {[%clk 0:00:03]} 81. Rb3+ {[%clk 0:00:01]}  Ka6 {[%clk 0:00:03]} 82. Rd3 {[%clk 0:00:01]}  Kb5 {[%clk 0:00:04]} 83. Rb3+ {[%clk 0:00:01]}  Kc4 {[%clk 0:00:04]} 84. Rb7 {[%clk 0:00:02]}  Kxd4 {[%clk 0:00:04]} 85. Rxc7 {[%clk 0:00:03]}  Kxc5 {[%clk 0:00:05]} 86. Rc8 {[%clk 0:00:03]}  Re1 {[%clk 0:00:06]} 87. Rb8 {[%clk 0:00:03]}  d4 {[%clk 0:00:06]} 88. Rd8 {[%clk 0:00:04]}  Kc4 {[%clk 0:00:07]} 89. Kf4 {[%clk 0:00:05]}  c5 {[%clk 0:00:07]} 90. Kf3 {[%clk 0:00:06]}  Kc3 {[%clk 0:00:08]} 0-1


[Site "https://www.chess.com"]